bitfinex/quotes_ETHUSD_20250318
["timestamp","ask_amount","ask_price","bid_price","bid_amount"]
[1742324598842,7.85599823,1897.1,1897.0,5.27148]
[1742324599007,7.85599823,1897.1,1896.9,10.54326]
[1742324599212,7.85599823,1897.1,1896.9,5.27162]
[1742324599462,7.85599823,1897.1,1896.8,8.27193]
[1742324599702,7.85599823,1897.1,1897.0,5.27148]
[1742324599976,5.114,1897.1,1897.0,5.27148]
[1742324601645,2.74199823,1897.2,1897.0,5.27148]
[1742324601646,2.74199823,1897.2,1897.1,5.2712]
[1742324601845,7.85199823,1897.4,1897.3,5.27064]
[1742324602058,7.85199823,1897.4,1897.3,6.324785]
[1742324602258,7.85199823,1897.4,1897.3,5.27064]
[1742324602469,2.74199823,1897.4,1897.3,5.27064]
[1742324605783,2.74199823,1897.4,1897.3,6.06324]
[1742324606247,2.74199823,1897.4,1897.3,9.06324]
[1742324606452,2.74199823,1897.6,1897.5,8.27009]
[1742324607557,2.74199823,1897.6,1897.5,5.27009]
[1742324608162,2.74199823,1897.6,1897.4,5.27009]
[1742324608366,8.01182823,1897.6,1897.3,8.27055]
[1742324608567,2.74199823,1897.4,1897.3,13.54108]
[1742324610602,2.74199823,1897.4,1897.3,8.27064]
[1742324611389,2.74199823,1897.4,1897.3,9.624786]
[1742324614797,2.74199823,1897.6,1897.5,5.27009]
[1742324618160,2.74199823,1897.8,1897.7,5.26953]
[1742324618559,17.443,1898.2,1898.1,5.26842]
[1742324618790,7.84199823,1898.2,1898.1,5.26842]
[1742324619995,13.11013823,1898.2,1897.4,5.27009]
[1742324620201,6.0448,1898.1,1897.8,5.26922]
[1742324620798,0.7762,1898.1,1897.5,6.14]
[1742324621001,0.7762,1897.7,1897.4,5.27019]
[1742324621303,0.7762,1897.4,1897.1,5.27111]
[1742324621602,0.7762,1897.4,1897.3,5.27064]
[1742324622513,0.7762,1897.4,1897.2,5.27074]
[1742324622713,0.7762,1897.4,1897.1,3.0]
[1742324622714,2.74199823,1897.3,1897.1,13.54224]
[1742324622910,2.74199823,1897.3,1897.1,13.54213]
[1742324623112,2.74199823,1897.3,1897.2,5.27092]
[1742324623299,8.01181823,1897.6,1897.3,5.27051]
[1742324623300,6.09882,1897.6,1897.3,5.27051]
[1742324623509,0.829,1897.6,1897.3,5.27051]
[1742324623718,6.09884,1897.6,1897.3,5.27051]
[1742324624435,2.74199823,1897.4,1897.3,5.27051]
[1742324625033,2.74199823,1897.4,1897.3,6.85173]
[1742324625193,5.26919,1897.9,1897.5,5.27009]
[1742324625393,5.26919,1897.9,1897.2,5.27081]
[1742324625394,10.75402646,1897.6,1897.2,5.27081]
[1742324625643,2.74199823,1897.3,1897.1,5.2712]
[1742324625841,2.74199823,1897.3,1897.1,10.54223]
[1742324625997,2.74199823,1897.3,1897.1,5.27103]
[1742324626191,0.8271,1897.2,1897.0,3.0]
[1742324626393,2.74199823,1897.1,1896.9,5.27159]
[1742324626697,3.14767256,1897.1,1896.9,5.27159]
[1742324627630,3.14767256,1897.1,1897.0,5.27148]
[1742324628437,2.74199823,1897.1,1897.0,5.27148]
[1742324630426,0.8,1897.4,1897.3,5.27064]
[1742324630764,7.84199823,1897.4,1897.3,5.27064]
[1742324630939,2.74199823,1897.4,1897.3,5.27064]
[1742324633355,0.7827,1897.3,1897.1,5.2712]
[1742324633519,2.74199823,1897.2,1897.0,5.27142]
[1742324633724,2.74199823,1897.1,1897.0,5.27142]
[1742324637461,2.74199823,1897.1,1896.9,5.27152]
[1742324637962,2.74199823,1897.1,1896.8,10.54384]
[1742324638164,2.74199823,1896.9,1896.8,8.2719]
[1742324640340,5.101,1897.2,1897.0,5.27134]
[1742324640535,2.74199823,1897.1,1897.0,5.27134]
[1742324640727,2.74199823,1897.1,1896.9,5.27156]
[1742324640932,5.101,1897.2,1897.0,5.27148]
[1742324641144,2.74199823,1897.0,1896.9,5.2717]
[1742324642362,2.74199823,1897.0,1896.9,7.153254]
[1742324643254,2.74199823,1897.0,1896.9,5.2717]
[1742324646589,3.57479823,1897.0,1896.8,8.27189]
[1742324646775,3.57479823,1897.0,1896.9,5.27175]
[1742324650668,2.74199823,1897.0,1896.9,5.27175]
[1742324653206,0.8233,1896.9,1896.5,6.04403]
[1742324653370,0.8233,1896.9,1896.2,11.41352]
[1742324653371,8.83797823,1896.6,1896.2,11.41352]
[1742324653568,2.74199823,1896.3,1896.2,5.2737]
[1742324653890,2.74199823,1896.3,1896.2,8.2737]
[1742324654258,2.74199823,1896.5,1896.3,8.27342]
[1742324654554,2.74199823,1896.5,1896.4,5.27314]
[1742324658993,2.74199823,1896.6,1896.5,5.27259]
[1742324660416,2.74199823,1896.6,1896.3,8.27342]
[1742324660618,2.74199823,1896.4,1896.1,0.7634]
[1742324660841,2.74199823,1896.2,1896.1,5.27398]
[1742324663698,2.74199823,1896.4,1896.3,5.27334]
[1742324665014,0.40411823,1896.7,1896.6,5.27259]
[1742324665203,2.74199823,1896.7,1896.6,5.27259]
[1742324666012,3.12935885,1896.7,1896.6,5.27259]
[1742324667006,2.74199823,1896.7,1896.6,6.327136]
[1742324669719,2.74199823,1896.7,1896.6,5.27259]
[1742324671043,2.74199823,1896.9,1896.8,5.27203]
[1742324674641,2.74199823,1896.9,1896.6,3.0]
[1742324674642,0.7574,1896.8,1896.6,3.0]
[1742324674855,2.74199823,1896.7,1896.5,5.27285]
[1742324675163,2.74199823,1896.7,1896.4,5.27302]
[1742324675333,3.49939823,1896.5,1896.3,5.27339]
[1742324675537,3.49939823,1896.5,1896.3,5.27327]
[1742324675749,3.49939823,1896.5,1896.3,10.54655]
[1742324676043,3.49939823,1896.5,1896.4,5.27314]
[1742324676244,2.74199823,1896.5,1896.4,5.27314]
[1742324676631,2.74199823,1896.5,1896.4,6.327781]
[1742324677032,2.74199823,1896.7,1896.6,5.2724]
[1742324682085,2.74199823,1896.7,1896.5,5.27273]
[1742324682237,2.74199823,1896.7,1896.5,10.5455]
[1742324682766,2.74199823,1896.7,1896.6,5.27259]
[1742324682990,2.74199823,1896.7,1896.5,5.27273]
[1742324683268,2.74199823,1896.7,1896.6,5.27259]
[1742324683889,2.74199823,1896.7,1896.5,5.27273]
[1742324684238,0.7936,1896.6,1896.5,5.27273]
[1742324686675,0.7936,1896.6,1896.4,10.54615]
[1742324686974,2.74199823,1896.5,1896.4,5.27305]
[1742324687849,2.74199823,1896.5,1896.3,5.27331]
[1742324688051,2.74199823,1896.5,1896.2,8.27359]
[1742324688250,2.74199823,1896.3,1896.2,5.27359]
[1742324697506,2.74199823,1896.3,1895.8,10.54948]
[1742324697507,10.54754,1896.1,1895.8,10.54948]
[1742324697711,2.74199823,1895.9,1895.6,5.27529]
[1742324697878,2.74199823,1895.7,1895.6,5.27529]
[1742324698067,2.74199823,1895.7,1895.6,8.27529]
[1742324698265,2.74199823,1895.7,1895.6,5.27529]
[1742324700223,5.9002,1896.2,1896.0,5.27409]
[1742324700425,8.64219823,1896.2,1896.1,5.27398]
[1742324701626,7.84399823,1896.2,1896.1,5.27398]
[1742324704810,0.7551,1896.6,1896.2,5.27359]
[1742324704976,2.74199823,1896.5,1896.4,5.27293]
[1742324709320,2.74199823,1896.5,1896.3,5.27331]
[1742324709814,2.74199823,1896.5,1896.4,5.27314]
[1742324710810,8.23473191,1896.6,1896.5,5.27287]
[1742324711378,7.84399823,1896.6,1896.5,5.27287]
[1742324713725,0.7543,1897.0,1896.6,5.27245]
[1742324713883,2.74199823,1896.7,1896.6,5.27259]
[1742324717053,2.74199823,1896.7,1896.4,5.27308]
[1742324717255,2.74199823,1896.5,1896.4,5.27301]
[1742324719726,2.74199823,1896.7,1896.6,5.27259]
[1742324719953,2.74199823,1896.7,1896.6,6.03559]
[1742324720438,2.74199823,1896.7,1896.6,5.27259]
[1742324720945,2.74199823,1896.7,1896.5,5.27259]
[1742324721115,0.8311,1896.6,1896.4,5.27299]
[1742324721324,2.74199823,1896.5,1896.4,5.27299]
[1742324722158,3.56939823,1896.5,1896.2,5.2736]
[1742324722324,2.74199823,1896.3,1896.2,13.54717]
[1742324722947,2.74199823,1896.5,1896.4,5.27314]
[1742324724449,3.55199823,1896.5,1896.2,9.628167]
[1742324724638,2.74199823,1896.3,1896.2,8.27345]
[1742324727255,2.74199823,1896.3,1896.2,3.0]
[1742324727552,2.74199823,1896.3,1896.1,10.54769]
[1742324727553,2.74199823,1896.3,1896.1,5.27383]
[1742324727735,8.01552823,1896.3,1895.9,5.27434]
[1742324727939,5.101,1896.4,1895.8,6.8962]
[1742324727940,2.74199823,1896.1,1895.8,5.27478]
[1742324728130,2.74199823,1895.9,1895.8,5.27478]
[1742324728652,2.74199823,1895.9,1895.8,8.27478]
[1742324728970,2.74199823,1895.9,1895.8,5.27481]
[1742324729255,2.74199823,1895.9,1895.8,8.27481]
[1742324729550,2.74199823,1895.9,1895.7,10.54992]
[1742324729955,3.52069823,1895.9,1895.7,10.54992]
[1742324730645,3.52069823,1895.9,1895.8,5.27481]
[1742324730840,2.74199823,1895.9,1895.8,5.27481]
[1742324732256,2.74199823,1895.9,1895.8,5.42182853]
[1742324732758,2.74199823,1895.9,1895.8,0.14701853]
[1742324733136,2.74199823,1895.9,1895.7,5.27497]
[1742324733437,2.74199823,1895.9,1895.8,0.14035397]
[1742324735003,2.74199823,1895.9,1895.6,5.27523]
[1742324735127,15.64885,1896.0,1895.8,0.14035397]
[1742324735323,8.01653823,1895.9,1895.6,5.27521]
[1742324735529,2.74199823,1895.7,1895.6,10.55047]
[1742324736263,2.74199823,1895.7,1895.6,5.27521]
[1742324736760,2.74199823,1895.7,1895.5,9.05809]
[1742324736933,2.74199823,1895.7,1895.5,8.27552]
[1742324737869,2.74199823,1895.7,1895.5,13.55102]
[1742324738032,2.74199823,1895.7,1895.5,3.0]
[1742324738234,0.7569,1895.5,1895.2,5.27638]
[1742324738441,2.74199823,1895.4,1895.1,9.10894]
[1742324738676,0.7569,1895.5,1895.1,8.27655]
[1742324738677,2.74199823,1895.2,1895.1,8.27655]
[1742324739764,2.74199823,1895.4,1895.3,5.2762]
[1742324741364,5.101,1895.6,1895.3,0.7638]
[1742324741365,5.102,1895.6,1895.3,0.7638]
[1742324741566,2.74199823,1895.5,1895.4,5.2757]
[1742324742513,2.74199823,1895.5,1895.3,6.03997]
[1742324742687,8.77756823,1895.5,1895.2,8.27639]
[1742324742840,2.74199823,1895.3,1895.2,8.27639]
[1742324743039,2.74199823,1895.3,1895.2,3.0]
[1742324743242,3.12916846,1895.3,1895.2,0.1128376]
[1742324743465,9.20376846,1895.3,1895.0,6.14]
[1742324743677,2.74199823,1895.1,1895.0,6.14]
[1742324743855,2.74199823,1895.1,1894.9,5.27716]
[1742324744800,2.74199823,1895.1,1894.9,5.27714]
[1742324745800,2.74199823,1895.1,1894.8,3.0]
[1742324745801,8.01886823,1895.1,1894.8,3.0]
[1742324746080,8.01940823,1894.9,1894.6,5.27812]
[1742324746285,2.74199823,1894.7,1894.6,5.27812]
[1742324746485,2.74199823,1894.7,1894.6,8.27812]
[1742324746980,2.74199823,1894.7,1894.6,5.27815]
[1742324747189,3.50149823,1894.7,1894.5,5.27831]
[1742324747501,2.74199823,1894.7,1894.5,3.0]
[1742324747783,8.27853,1894.5,1894.1,5.27937]
[1742324747986,2.74199823,1894.2,1894.1,5.27937]
[1742324748285,7.84499823,1894.4,1894.2,5.27918]
[1742324748585,2.74199823,1894.3,1894.2,5.27918]
[1742324749648,2.74199823,1894.3,1894.1,10.55893]
[1742324749849,2.74199823,1894.3,1894.1,5.27939]
[1742324750051,8.78518823,1894.3,1893.8,5.28037]
[1742324750291,2.74199823,1893.9,1893.8,5.28037]
[1742324750453,2.74199823,1893.9,1893.7,6.03516]
[1742324750777,2.74199823,1893.9,1893.8,5.28038]
[1742324751593,2.74199823,1893.9,1893.6,5.28092]
[1742324751891,2.74199823,1893.7,1893.6,5.28077]
[1742324752094,2.74199823,1893.7,1893.6,8.28077]
[1742324752775,3.52369823,1893.7,1893.4,6.14]
[1742324752967,2.74199823,1893.5,1893.4,11.42124]
[1742324753289,2.74199823,1893.5,1893.4,5.28124]
[1742324753666,2.74199823,1893.5,1893.4,8.28124]
[1742324756625,5.104,1893.6,1893.5,6.09032]
[1742324756818,2.74199823,1893.7,1893.6,5.28094]
[1742324758027,2.74199823,1893.7,1893.6,5.37740727]
[1742324759028,2.74199823,1893.7,1893.6,0.09646727]
[1742324760041,2.74199823,1893.7,1893.6,5.37740727]
[1742324762811,2.74199823,1893.7,1893.6,0.09646727]
[1742324763008,2.74199823,1893.7,1893.4,3.0]
[1742324763009,8.83025823,1893.7,1893.4,3.0]
[1742324763235,2.74199823,1893.5,1893.4,3.0]
[1742324763627,2.74199823,1893.5,1893.3,5.2816]
[1742324764222,2.74199823,1893.5,1893.3,10.56324]
[1742324764430,2.74199823,1893.5,1893.4,5.2815]
[1742324765719,2.74199823,1893.5,1893.4,6.0964]
[1742324766229,0.4010523,1893.8,1893.7,5.28066]
[1742324766430,5.106,1893.9,1893.8,5.28023]
[1742324766645,7.84799823,1893.9,1893.7,5.28066]
[1742324767168,7.84799823,1893.9,1893.8,5.28038]
[1742324767961,2.74199823,1893.9,1893.8,5.28038]
[1742324770635,2.74199823,1894.1,1894.0,5.27957]
[1742324770834,7.84799823,1894.1,1894.0,5.27957]
[1742324771170,0.7942,1894.3,1894.2,5.27927]
[1742324771171,5.106,1894.3,1894.2,5.27927]
[1742324771578,7.84799823,1894.3,1894.2,5.27927]
[1742324773190,7.84799823,1894.3,1894.2,5.36558532]
[1742324773488,0.809,1894.5,1894.4,5.27871]
[1742324773689,7.84799823,1894.5,1894.4,5.27871]
[1742324774059,7.84799823,1894.5,1894.4,5.36496356]
[1742324774996,7.84799823,1894.5,1894.4,0.08625356]
[1742324775289,7.84799823,1894.5,1894.1,10.55897]
[1742324775290,13.93542823,1894.5,1894.1,10.55897]
[1742324775495,13.93542823,1894.5,1894.0,3.0]
[1742324775496,2.74199823,1894.2,1894.0,3.0]
[1742324775668,5.105,1894.1,1893.9,3.0]
[1742324775874,2.74199823,1894.0,1893.9,3.0]
[1742324776282,2.74199823,1894.0,1893.9,5.2801]
[1742324778713,2.74199823,1894.0,1893.8,3.0]
[1742324779017,2.74199823,1894.0,1893.8,8.28035]
[1742324779368,2.74199823,1894.0,1893.7,10.56097]
[1742324779602,2.74199823,1893.8,1893.7,5.28043]
[1742324780170,2.74199823,1894.0,1893.9,5.27998]
[1742324780811,2.74199823,1894.0,1893.8,5.28027]
[1742324781115,2.74199823,1894.0,1893.8,5.28038]
[1742324781332,2.74199823,1894.0,1893.7,10.56107]
[1742324781771,2.74199823,1894.0,1893.7,10.56105]
[1742324781970,2.74199823,1893.8,1893.7,5.28051]
[1742324782220,2.74199823,1894.0,1893.8,5.28022]
[1742324783117,2.74199823,1894.0,1893.8,10.56042]
[1742324784224,2.74199823,1894.0,1893.8,10.56048]
[1742324784384,2.74199823,1894.0,1893.8,5.2802]
[1742324784586,2.74199823,1894.0,1893.8,10.56045]
[1742324784823,2.74199823,1894.0,1893.7,10.56117]
[1742324785029,2.74199823,1894.0,1893.8,5.28033]
[1742324785443,2.74199823,1894.0,1893.7,10.56109]
[1742324785593,2.74199823,1894.0,1893.7,5.28054]
[1742324785794,2.74199823,1894.0,1893.8,5.28035]
[1742324786291,2.74199823,1894.0,1893.7,5.28054]
[1742324786505,2.74199823,1893.8,1893.7,5.28054]
[1742324788120,2.74199823,1893.8,1893.7,0.08238629]
[1742324788326,2.74199823,1893.8,1893.6,5.28082]
[1742324788508,2.74199823,1893.8,1893.7,0.08295379]
[1742324788719,2.74199823,1893.8,1893.6,5.28092]
[1742324788895,2.74199823,1893.8,1893.7,0.08295379]
[1742324789097,2.74199823,1893.8,1893.6,5.28092]
[1742324789318,2.74199823,1893.8,1893.7,0.08295379]
[1742324789548,5.28079,1893.7,1893.5,3.0]
[1742324789692,3.50449823,1893.6,1893.4,3.0]
[1742324789892,3.50449823,1893.6,1893.4,5.28135]
[1742324790322,5.28127,1893.5,1893.2,5.28203]
[1742324790524,8.02351823,1893.4,1893.1,5.28225]
[1742324790723,8.02351823,1893.4,1893.1,10.56443]
[1742324791128,2.74199823,1893.2,1893.0,0.8088]
[1742324791342,2.74199823,1893.2,1893.0,5.28249]
[1742324791623,2.74199823,1893.2,1893.0,10.56498]
[1742324792206,2.74199823,1893.2,1893.0,5.28249]
[1742324792409,2.74199823,1893.2,1893.0,13.56499]
[1742324792625,2.74199823,1893.2,1893.0,8.28249]
[1742324793030,3.14353636,1893.2,1893.0,8.28249]
[1742324793405,3.14353636,1893.2,1893.0,13.565]
[1742324793598,3.14353636,1893.2,1893.0,8.28249]
[1742324794844,3.14353636,1893.2,1893.0,3.0]
[1742324795804,5.106,1893.2,1893.1,6.11104]
[1742324796216,2.74199823,1893.5,1893.4,5.28129]
[1742324796535,2.74199823,1893.5,1893.4,6.10999]
[1742324796536,7.84799823,1893.5,1893.4,6.10999]
[1742324798108,7.84799823,1893.5,1893.4,5.28129]
[1742324800039,2.74199823,1893.7,1893.6,5.28094]
[1742324800212,2.74199823,1893.7,1893.5,5.28107]
[1742324800613,7.84799823,1893.7,1893.5,5.28107]
[1742324801350,0.7967,1893.6,1893.4,5.28129]
[1742324801556,0.7967,1893.6,1893.3,5.28166]
[1742324801557,2.74199823,1893.5,1893.3,5.28166]
[1742324802328,2.74199823,1893.5,1893.2,5.28205]
[1742324802673,2.74199823,1893.3,1893.2,8.28205]
[1742324803063,2.74199823,1893.3,1893.2,8.35768493]
[1742324804375,2.74199823,1893.5,1893.3,5.28165]
[1742324804873,2.74199823,1893.5,1893.4,0.07563493]
[1742324806249,2.74199823,1893.5,1893.3,5.28175]
[1742324806576,2.74199823,1893.4,1893.2,13.56391]
[1742324806775,2.74199823,1893.4,1893.3,5.28178]
[1742324806945,2.74199823,1893.4,1893.2,8.28194]
[1742324808480,0.40194676,1893.6,1893.3,11.3743]
[1742324808664,7.84699823,1893.4,1893.3,5.28162]
[1742324808863,7.84699823,1893.4,1893.2,8.28201]
[1742324808864,7.84699823,1893.4,1893.2,3.0]
[1742324809068,13.12850823,1893.4,1893.1,5.2823]
[1742324809252,2.74199823,1893.2,1893.0,8.28257]
[1742324810406,3.55659823,1893.2,1892.9,5.28278]
[1742324810567,3.13660332,1893.2,1893.1,5.28234]
[1742324811000,2.74199823,1893.3,1893.2,5.28195]
[1742324811367,2.74199823,1893.3,1893.1,11.37557]
[1742324811699,2.74199823,1893.3,1893.0,5.28252]
[1742324811869,2.74199823,1893.1,1893.0,5.28243]
[1742324812270,2.74199823,1893.3,1893.1,5.28218]
[1742324812470,2.74199823,1893.3,1893.2,5.28206]
[1742324812687,6.03317,1893.5,1893.2,5.28206]
[1742324812896,2.74199823,1893.4,1893.2,6.09297]
[1742324813406,2.74199823,1893.4,1893.1,5.28211]
[1742324813575,3.14268211,1893.4,1893.2,5.28199]
[1742324814570,3.95158211,1893.4,1893.1,5.28211]
[1742324814793,1.20958388,1893.4,1893.2,5.28205]
[1742324815505,0.40068388,1893.4,1893.3,5.28178]
[1742324815801,5.105,1893.5,1893.2,10.56387]
[1742324816101,2.74199823,1893.3,1893.2,5.2819]
[1742324818206,2.74199823,1893.3,1893.2,5.3529205]
[1742324820235,5.106,1893.4,1893.3,5.28178]
[1742324820520,5.50217942,1893.6,1893.5,5.28111]
[1742324820686,7.84699823,1893.6,1893.5,5.28111]
[1742324821211,7.84699823,1893.6,1893.5,5.3521305]
[1742324821925,2.74199823,1893.6,1893.5,5.3521305]
[1742324822703,6.32796136,1893.7,1893.6,5.28094]
[1742324823038,8.24985959,1893.7,1893.6,5.28094]
[1742324823239,8.24985959,1893.7,1893.6,0.0705395]
[1742324823656,13.53051959,1893.7,1893.6,0.0705395]
[1742324823958,5.28123,1893.5,1893.2,5.28204]
[1742324824238,2.74199823,1893.3,1893.2,8.28204]
[1742324826745,5.50786136,1893.7,1893.5,5.2811]
[1742324826918,2.74199823,1893.6,1893.5,5.2811]
[1742324827320,7.84699823,1893.6,1893.5,5.2811]
[1742324828838,7.84699823,1893.6,1893.4,5.28139]
[1742324829040,2.650218,1893.4,1893.1,3.0]
[1742324829343,2.74199823,1893.4,1893.3,5.28178]
[1742324832354,2.74199823,1893.4,1893.2,5.2818]
[1742324832794,3.55679823,1893.4,1893.2,5.2818]
[1742324832958,2.74199823,1893.4,1893.3,5.28178]
[1742324833260,2.74199823,1893.4,1893.3,5.34470985]
[1742324834919,2.74199823,1893.4,1893.3,0.06292985]
[1742324836117,2.74199823,1893.4,1893.3,5.34470985]
[1742324837273,2.74199823,1893.4,1893.3,0.06292985]
[1742324838874,8.81349823,1893.4,1893.1,5.28229]
[1742324839072,8.81349823,1893.4,1893.3,0.06292985]
[1742324839565,8.81349823,1893.4,1893.1,10.56443]
[1742324839765,3.53199823,1893.4,1893.3,0.06292985]
[1742324840080,3.53199823,1893.4,1893.2,5.28205]
[1742324840251,3.53199823,1893.4,1893.3,0.06292985]
[1742324841680,8.81349823,1893.4,1893.3,0.06292985]
[1742324842077,14.09526823,1893.4,1893.0,5.28249]
[1742324842283,11.35327,1893.4,1893.3,0.06316368]
[1742324842437,14.09526823,1893.4,1893.0,5.28249]
[1742324842640,8.81349823,1893.4,1893.3,0.06316368]
[1742324842841,8.81349823,1893.4,1893.1,5.2822]
[1742324843087,2.74199823,1893.4,1893.3,0.06316368]
[1742324843381,2.74199823,1893.4,1893.3,5.34494368]
[1742324843382,7.84699823,1893.4,1893.3,5.34494368]
[1742324846872,7.84599823,1893.4,1893.3,5.34494368]
[1742324847993,2.74199823,1893.6,1893.5,5.28122]
[1742324848298,7.84599823,1893.6,1893.4,5.28139]
[1742324848660,7.84599823,1893.6,1893.5,0.06316368]
[1742324850363,7.84599823,1893.6,1893.5,5.34438368]
[1742324850571,5.50686136,1893.7,1893.6,5.28094]
[1742324850888,2.74199823,1893.8,1893.6,5.28094]
[1742324851089,17.476,1893.9,1893.7,5.28066]
[1742324851290,7.84599823,1893.8,1893.7,5.28066]
[1742324851708,2.74199823,1893.8,1893.7,5.34390982]
[1742324851918,7.84599823,1893.8,1893.7,5.34390982]
[1742324854111,25.71890139,1893.9,1893.8,5.28038]
[1742324854312,8.24290139,1893.9,1893.8,5.28038]
[1742324854465,7.84599823,1893.9,1893.8,6.34280898]
[1742324854666,7.84599823,1893.9,1893.8,7.10290898]
[1742324854884,7.84599823,1893.9,1893.8,7.1661588]
[1742324855065,7.84599823,1893.9,1893.8,1.1256788]
[1742324855265,7.84599823,1893.9,1893.8,0.06324982]
[1742324855514,7.84599823,1893.9,1893.8,5.34362982]
[1742324856510,7.84599823,1893.9,1893.8,0.06324982]
[1742324857507,8.80299823,1893.9,1893.8,0.06324982]
[1742324857816,8.80299823,1893.9,1893.5,5.28108]
[1742324857980,2.74199823,1893.6,1893.4,5.28146]
[1742324858163,2.74199823,1893.6,1893.4,10.56287]
[1742324858467,7.84499823,1893.6,1893.4,5.28141]
[1742324858673,8.62589823,1893.6,1893.3,5.28174]
[1742324858878,2.74199823,1893.4,1893.3,5.28163]
[1742324859303,7.84499823,1893.6,1893.4,5.28123]
[1742324859914,0.7809,1893.8,1893.5,6.04132]
[1742324860121,7.84499823,1893.7,1893.6,5.28094]
[1742324863000,7.84499823,1893.7,1893.5,5.28122]
[1742324863206,7.84499823,1893.7,1893.6,0.06264689]
[1742324864092,7.84499823,1893.7,1893.6,5.34358689]
[1742324864286,2.74199823,1893.7,1893.6,5.34358689]
[1742324864592,2.74199823,1893.7,1893.6,7.16455458]
[1742324864794,8.24019082,1893.9,1893.8,5.28038]
[1742324865213,8.24019082,1893.9,1893.7,10.5609]
[1742324865410,8.24019082,1893.9,1893.8,0.06264689]
[1742324865840,8.24019082,1893.9,1893.8,5.34302689]
[1742324866644,3.13719082,1893.9,1893.8,5.34302689]
[1742324866847,8.24019082,1893.9,1893.8,5.34302689]
[1742324867011,8.24019082,1893.9,1893.8,0.06264689]
[1742324867518,8.24019082,1893.9,1893.8,5.34302689]
[1742324867717,7.84499823,1893.9,1893.8,5.34302689]
[1742324868971,7.84499823,1893.9,1893.8,0.06264689]
[1742324869552,7.84499823,1893.9,1893.8,5.34302689]
[1742324870964,7.84499823,1893.9,1893.8,0.06264689]
[1742324871368,7.84499823,1893.9,1893.8,5.34302689]
[1742324879039,5.103,1893.9,1893.8,5.34302689]
[1742324879435,2.74199823,1894.1,1893.9,5.2801]
[1742324879768,5.27876,1894.4,1894.1,10.55887]
[1742324879769,2.74199823,1894.3,1894.1,10.55887]
[1742324879964,5.102,1894.2,1894.1,10.55887]
[1742324880538,5.102,1894.2,1894.1,10.61876259]
[1742324880853,3.14624216,1894.3,1894.1,10.61876259]
[1742324881047,7.84399823,1894.3,1894.1,10.61876259]
[1742324881369,7.84399823,1894.3,1894.2,5.27927]
[1742324881568,7.84399823,1894.3,1894.2,5.33884309]
[1742324881971,7.84399823,1894.3,1894.2,0.05957309]
[1742324882188,8.61909823,1894.3,1894.2,0.05957309]
[1742324882395,13.89808823,1894.3,1894.2,0.05957309]
[1742324882564,13.89808823,1894.3,1893.8,5.28024]
[1742324882565,5.27955,1894.1,1893.8,5.28024]
[1742324882745,2.74199823,1894.0,1893.8,10.56048]
[1742324883168,2.74199823,1894.0,1893.9,5.2801]
[1742324883339,2.74199823,1894.0,1893.8,10.56051]
[1742324883736,2.74199823,1894.0,1893.9,5.2801]
[1742324884363,2.74199823,1894.0,1893.8,5.28024]
[1742324884562,2.74199823,1894.0,1893.8,10.56054]
[1742324884837,2.74199823,1894.0,1893.9,5.2801]
[1742324885485,0.39749196,1894.4,1893.9,1.868334]
[1742324885772,2.74199823,1894.3,1894.0,5.27979]
[1742324885971,8.77378823,1894.1,1893.8,5.28035]
[1742324886179,3.49419823,1894.1,1893.8,10.56062]
[1742324886585,3.49419823,1894.1,1893.8,5.28027]
[1742324886748,3.49419823,1894.1,1893.9,5.28007]
[1742324887349,3.49419823,1894.1,1893.9,5.27994]
[1742324887862,2.74199823,1894.1,1894.0,5.27983]
[1742324890659,5.101,1894.2,1894.1,5.27955]
[1742324891458,2.74199823,1894.3,1894.2,5.27927]
[1742324891643,7.84299823,1894.3,1894.2,5.27927]
[1742324892255,7.84299823,1894.3,1894.2,6.07827]
[1742324893161,7.84299823,1894.3,1894.2,5.27927]
[1742324893366,7.84299823,1894.3,1894.2,5.33841306]
[1742324893947,7.84299823,1894.3,1894.2,0.05914306]
[1742324894148,13.12198823,1894.3,1893.9,10.55995]
[1742324894347,13.12198823,1894.3,1893.9,5.27995]
[1742324894348,2.74199823,1894.0,1893.9,5.27995]
[1742324894582,2.74199823,1894.0,1893.8,10.56052]
[1742324894881,2.74199823,1894.0,1893.8,5.28025]
[1742324895079,2.74199823,1894.0,1893.8,10.56049]
[1742324895449,2.74199823,1894.0,1893.9,5.2801]
[1742324897461,3.96530369,1894.3,1894.1,5.27955]
[1742324897662,5.1,1894.2,1894.1,5.27955]
[1742324897890,5.1,1894.2,1894.0,5.27983]
[1742324898082,2.74199823,1894.1,1894.0,5.27983]
[1742324901399,5.1,1894.2,1894.1,5.27955]
[1742324901607,0.752,1894.5,1894.2,5.27927]
[1742324901897,5.1,1894.3,1894.2,6.07847]
[1742324903381,3.1385116,1894.5,1894.4,5.27871]
[1742324903382,2.74199823,1894.5,1894.4,5.27871]
[1742324903585,5.1,1894.5,1894.4,5.27871]
[1742324903784,7.84199823,1894.5,1894.4,5.27871]
[1742324905989,2.74199823,1894.5,1894.4,6.334457]
[1742324906575,2.74199823,1894.7,1894.6,10.55614]
[1742324906761,7.84199823,1894.9,1894.7,5.27763]
[1742324906958,7.84199823,1894.9,1894.6,5.27812]
[1742324907287,2.74199823,1894.7,1894.6,5.27812]
[1742324907993,3.49329823,1894.7,1894.4,5.27867]
[1742324908187,2.74199823,1894.5,1894.3,5.27884]
[1742324908493,2.74199823,1894.5,1894.3,0.606814]
[1742324908674,2.74199823,1894.5,1894.2,11.34762]
[1742324908868,2.74199823,1894.5,1894.3,5.27899]
[1742324909064,2.74199823,1894.5,1894.4,5.27871]
[1742324909264,5.74199823,1894.7,1894.5,5.27838]
[1742324909589,7.84099823,1894.7,1894.6,5.27815]
[1742324909962,2.74199823,1894.7,1894.6,5.27815]
[1742324910163,7.84099823,1894.9,1894.7,5.27774]
[1742324910364,7.84099823,1894.9,1894.7,10.55544]
[1742324910800,8.099,1895.0,1894.8,5.2776]
[1742324911003,8.099,1895.0,1894.9,5.27732]
[1742324911301,5.099,1895.0,1894.9,5.27732]
[1742324911487,5.099,1895.0,1894.8,11.32961]
[1742324911671,2.74199823,1894.9,1894.8,5.27741]
[1742324911878,2.74199823,1894.9,1894.7,5.27786]